bitfinex/quotes_SOLUSD_20250819
["timestamp","ask_amount","ask_price","bid_price","bid_amount"]
[1755591124878,6.08847782,179.49,179.48,0.72]
[1755591125610,10.22855803,179.49,179.48,0.72]
[1755591125970,4.14008021,179.49,179.48,0.72]
[1755591126307,0.03,179.52,179.48,0.72]
[1755591126600,4.14337633,179.51,179.48,0.72]
[1755591126806,0.03,179.52,179.49,5.57134102]
[1755591126983,6.11847782,179.52,179.49,5.57134102]
[1755591127172,4.14372555,179.51,179.5,0.72]
[1755591127592,4.14589524,179.51,179.5,0.72]
[1755591128007,0.03,179.52,179.5,6.80847782]
[1755591128374,0.03,179.52,179.49,5.57134102]
[1755591128375,0.03,179.52,179.51,0.67]
[1755591128574,4.17901602,179.52,179.51,0.67]
[1755591129092,4.17901602,179.52,179.51,6.24072029]
[1755591129897,0.03,179.52,179.51,45.56072029]
[1755591130207,0.03,179.52,179.51,66.75541368]
[1755591132704,0.03,179.52,179.51,92.75541368]
[1755591133276,0.03,179.54,179.52,15.10621557]
[1755591133481,0.03,179.54,179.53,6.08847782]
[1755591133798,0.03,179.54,179.53,21.86469339]
[1755591134306,0.03,179.58,179.56,15.10621557]
[1755591134478,0.03,179.58,179.57,60.51469339]
[1755591134984,0.03,179.61,179.57,61.18469339]
[1755591135184,0.03,179.61,179.6,26.76262212]
[1755591135701,0.03,179.61,179.6,27.43262212]
[1755591136070,0.03,179.65,179.61,15.10621557]
[1755591136297,0.03,179.65,179.64,21.19469339]
[1755591136912,0.03,179.65,179.64,15.77621557]
[1755591137327,0.03,179.65,179.64,39.34]
[1755591137328,6.77847782,179.65,179.64,39.34]
[1755591140208,6.11847782,179.65,179.64,39.34]
[1755591140815,0.03,179.65,179.64,39.34]
[1755591141106,0.03,179.65,179.64,40.01]
[1755591141308,0.03,179.65,179.64,45.57668893]
[1755591141705,0.03,179.65,179.64,66.77138232]
[1755591141913,0.03,179.65,179.64,60.6829045]
[1755591142111,0.03,179.65,179.64,66.77138232]
[1755591145617,0.03,179.65,179.64,92.77138232]
[1755591146529,1e-08,179.65,179.64,72.21156167]
[1755591146735,1e-08,179.65,179.64,72.76823056]
[1755591146905,1e-08,179.67,179.66,41.10621557]
[1755591147105,1e-08,179.67,179.66,47.19469339]
[1755591147308,1e-08,179.67,179.66,86.53469339]
[1755591147605,1e-08,179.67,179.66,92.77076263]
[1755591149939,1e-08,179.67,179.66,86.68228481]
[1755591150139,1e-08,179.67,179.66,92.77076263]
[1755591151610,0.66000001,179.67,179.66,44.86606924]
[1755591152343,1e-08,179.67,179.66,44.86606924]
[1755591152737,6.74847783,179.67,179.66,39.3]
[1755591152942,6.74847783,179.67,179.66,39.34]
[1755591153310,1e-08,179.67,179.66,39.34]
[1755591154146,1e-08,179.67,179.66,44.90606924]
[1755591154651,1e-08,179.67,179.66,39.34]
[1755591154828,0.66000001,179.67,179.66,39.34]
[1755591155517,1e-08,179.67,179.66,39.34]
[1755591155836,0.66000001,179.67,179.66,39.34]
[1755591158738,1e-08,179.67,179.66,39.34]
[1755591160542,6.08847783,179.67,179.66,39.34]
[1755591161057,1e-08,179.67,179.66,39.34]
[1755591161222,6.08847783,179.67,179.66,39.34]
[1755591161543,1e-08,179.67,179.66,39.34]
[1755591165853,6.08847783,179.67,179.66,39.34]
[1755591166221,6.08847783,179.67,179.64,5.56662764]
[1755591166550,6.08847782,179.65,179.62,31.62721656]
[1755591166851,6.08847782,179.64,179.63,39.28]
[1755591167041,6.08847782,179.65,179.63,39.28]
[1755591167854,6.08847782,179.66,179.64,0.71]
[1755591168060,6.08847782,179.66,179.65,39.3]
[1755591168649,1e-08,179.67,179.65,40.01]
[1755591168856,1e-08,179.67,179.66,0.71]
[1755591169261,1e-08,179.67,179.65,39.3]
[1755591169852,1e-08,179.67,179.65,44.86624354]
[1755591170247,1e-08,179.67,179.65,45.57624354]
[1755591170550,6.08847783,179.67,179.65,45.57624354]
[1755591170727,1e-08,179.67,179.65,45.57624354]
[1755591170929,6.08847783,179.67,179.65,45.57624354]
[1755591171353,6.08847783,179.67,179.65,44.86624354]
[1755591172054,6.08847783,179.67,179.65,45.57624354]
[1755591172557,6.08847783,179.67,179.65,44.86624354]
[1755591172762,1e-08,179.67,179.66,0.71]
[1755591173351,1e-08,179.67,179.65,44.86624354]
[1755591173540,1e-08,179.67,179.65,45.57624354]
[1755591174044,1e-08,179.67,179.66,0.71]
[1755591174955,1e-08,179.67,179.66,21.90469339]
[1755591176047,1e-08,179.67,179.66,27.47076263]
[1755591176237,1e-08,179.67,179.66,26.76076263]
[1755591176438,1e-08,179.67,179.65,70.86630928]
[1755591177570,1e-08,179.67,179.65,71.57630928]
[1755591178247,1e-08,179.67,179.66,15.81621557]
[1755591179337,1e-08,179.67,179.66,21.38228481]
[1755591179534,1e-08,179.67,179.66,27.47076263]
[1755591180668,1e-08,179.67,179.66,21.38228481]
[1755591181452,1e-08,179.67,179.66,27.47076263]
[1755591181756,6.08847783,179.67,179.66,39.24]
[1755591182275,1e-08,179.67,179.66,39.24]
[1755591183043,1e-08,179.67,179.66,54.34621557]
[1755591183254,1e-08,179.67,179.66,61.14469339]
[1755591183557,1e-08,179.67,179.66,66.71076263]
[1755591185143,1e-08,179.67,179.66,92.71076263]
[1755591185769,1e-08,179.67,179.66,85.91228481]
[1755591186080,1e-08,179.67,179.66,65.24]
[1755591186378,1e-08,179.67,179.66,70.80606924]
[1755591186744,1e-08,179.67,179.66,39.24]
[1755591186941,6.75847783,179.67,179.66,39.24]
[1755591187771,6.75847783,179.67,179.66,39.3]
[1755591189979,1e-08,179.67,179.66,44.86606924]
[1755591190351,1e-08,179.67,179.66,45.52606924]
[1755591190965,1e-08,179.67,179.66,44.86606924]
[1755591192472,1e-08,179.67,179.66,45.52606924]
[1755591192675,1e-08,179.67,179.66,51.61454706]
[1755591192877,1e-08,179.67,179.66,66.72076263]
[1755591194353,1e-08,179.67,179.66,60.63228481]
[1755591194556,1e-08,179.67,179.66,44.86606924]
[1755591197883,6.08847783,179.67,179.66,39.3]
[1755591198084,6.74847783,179.67,179.66,39.3]
[1755591200153,1e-08,179.67,179.66,39.3]
[1755591200774,6.74847783,179.67,179.66,39.3]
[1755591202786,10.91002051,179.67,179.66,39.3]
[1755591204186,6.74847783,179.67,179.66,39.3]
[1755591208580,10.90420851,179.67,179.66,0.06]
[1755591208978,14.64869868,179.67,179.66,0.06]
[1755591209390,14.6476587,179.67,179.66,0.06]
[1755591209991,14.64664255,179.67,179.66,0.06]
[1755591210177,10.90215238,179.67,179.66,0.06]
[1755591212974,10.24215238,179.67,179.66,0.06]
[1755591213599,10.90215238,179.67,179.66,0.06]
[1755591213805,10.24215238,179.67,179.66,0.06]
[1755591214372,10.24215238,179.67,179.66,0.72]
[1755591214600,1e-08,179.67,179.66,0.72]
[1755591215786,6.08847783,179.67,179.66,0.72]
[1755591217106,1e-08,179.67,179.66,0.72]
[1755591217987,6.08847783,179.67,179.66,0.72]
[1755591218397,1e-08,179.67,179.66,0.72]
[1755591218711,6.08847783,179.67,179.66,0.72]
[1755591219783,1e-08,179.67,179.66,6.28606924]
[1755591222583,1e-08,179.67,179.66,27.48076263]
[1755591225302,1e-08,179.67,179.66,44.23076263]
[1755591228525,1e-08,179.67,179.66,83.39076263]
[1755591230404,0.1,179.7,179.69,41.10621557]
[1755591230626,0.03,179.71,179.7,20.67104584]
[1755591230823,0.03,179.71,179.7,21.37104584]
[1755591231043,0.03,179.71,179.7,27.45952366]
[1755591231521,0.03,179.71,179.7,21.37104584]
[1755591231727,0.03,179.71,179.7,27.45952366]
[1755591237223,0.03,179.71,179.7,20.67104584]
[1755591237427,0.03,179.71,179.7,26.75952366]
[1755591237741,0.03,179.71,179.7,65.91952366]
[1755591240218,0.03,179.71,179.7,66.61952366]
[1755591241118,0.03,179.73,179.72,26.0]
[1755591241319,0.03,179.73,179.72,71.22847782]
[1755591241622,0.03,179.73,179.72,71.92847782]
[1755591242323,0.03,179.73,179.72,77.49268881]
[1755591242932,0.03,179.73,179.72,92.59890438]
[1755591243835,0.03,179.73,179.72,91.89890438]
[1755591244129,0.03,179.73,179.72,92.59890438]
[1755591244630,0.03,179.73,179.72,91.89890438]
[1755591244836,0.72,179.73,179.72,31.56421099]
[1755591245040,0.72,179.73,179.72,70.70421099]
[1755591245343,6.80847782,179.73,179.72,39.14]
[1755591246034,0.03,179.73,179.72,44.70421099]
[1755591246343,0.03,179.75,179.74,31.56359185]
[1755591246524,0.03,179.75,179.74,91.91828524]
[1755591246838,0.03,179.77,179.75,15.10621557]
[1755591247015,0.03,179.77,179.76,71.26847782]
[1755591247214,0.03,179.77,179.76,71.96847782]
[1755591248241,1e-08,179.77,179.76,61.07469339]
[1755591248455,1e-08,179.77,179.76,66.63766624]
[1755591249342,0.03,179.81,179.8,6.08847782]
[1755591249645,0.03,179.81,179.8,45.26847782]
[1755591249847,0.03,179.81,179.8,45.96847782]
[1755591250237,0.03,179.82,179.8,61.07469339]
[1755591250442,0.03,179.82,179.81,12.34990376]
[1755591251555,0.03,179.82,179.81,27.45611933]
[1755591254065,0.1,179.83,179.81,27.45611933]
[1755591254240,0.1,179.83,179.82,45.94847782]
[1755591254564,1e-08,179.83,179.82,61.05469339]
[1755591255064,1e-08,179.85,179.83,15.10621557]
[1755591255238,1e-08,179.85,179.84,60.35469339]
[1755591255439,1e-08,179.85,179.84,61.05469339]
[1755591256160,1e-08,179.85,179.84,66.61519161]
[1755591257462,10.77597782,180.0,179.85,15.10621557]
[1755591257463,0.72,179.92,179.85,15.10621557]
[1755591257666,0.72,179.92,179.89,26.0]
[1755591257855,0.72,179.92,179.9,39.16]
[1755591258243,0.72,179.92,179.91,5.55833472]
[1755591258953,6.80847782,179.92,179.91,39.16]
[1755591260470,6.80847782,179.92,179.84,5.56049809]
[1755591260633,6.08847782,179.85,179.84,5.56049809]
[1755591260838,6.80847782,179.85,179.84,44.74049809]
[1755591261557,0.72,179.85,179.84,44.74049809]
[1755591262262,0.72,179.85,179.84,39.18]
[1755591262463,6.80847782,179.85,179.84,39.18]
[1755591262768,31.557163,179.95,179.84,39.16]
[1755591262950,0.72,179.89,179.84,71.94847782]
[1755591263141,0.72,179.89,179.85,15.10621557]
[1755591263465,6.80847782,179.88,179.86,39.26]
[1755591263662,6.08847782,179.88,179.86,39.26]
[1755591263862,0.72,179.87,179.86,44.8198799]
[1755591264450,0.72,179.87,179.86,39.26]
[1755591264650,6.80847782,179.87,179.86,39.24]
[1755591267348,6.80847782,179.89,179.86,44.79983124]
[1755591267569,6.08847782,179.88,179.86,44.79983124]
[1755591267763,6.80847782,179.89,179.86,44.79983124]
[1755591267984,6.08847782,179.88,179.86,44.79983124]
[1755591268299,0.03,179.91,179.87,0.7]
[1755591268626,0.03,179.91,179.88,46.04847782]
[1755591269372,0.03,179.91,179.88,60.45469339]
[1755591269373,0.03,179.89,179.88,60.45469339]
[1755591269555,0.03,179.89,179.88,92.01395512]
[1755591269877,0.03,179.89,179.88,66.01395512]
[1755591270048,0.03,179.89,179.88,66.71395512]
[1755591270875,0.03,179.89,179.88,60.6254773]
[1755591271181,0.03,179.89,179.88,66.71395512]
[1755591271648,0.03,179.91,179.89,15.10621557]
[1755591271849,0.03,179.91,179.9,71.32847782]
[1755591272073,0.03,179.91,179.9,72.02847782]
[1755591272278,0.03,179.91,179.9,87.13469339]
[1755591272877,0.03,179.93,179.92,41.10621557]
[1755591273067,0.1,179.99,179.96,26.0]
[1755591273396,6.90847782,179.99,179.97,39.24]
[1755591273562,0.72,179.98,179.97,44.79640386]
[1755591274196,0.1,179.99,179.97,44.79640386]
[1755591274376,0.1,179.99,179.97,45.49640386]
[1755591275095,0.1,179.99,179.97,51.58488168]
[1755591275304,0.1,179.99,179.98,6.78847782]
[1755591275470,0.1,179.99,179.98,21.89469339]
[1755591275674,0.1,179.99,179.98,27.45086629]
[1755591278692,0.1,179.99,179.98,21.36238847]
[1755591278995,0.1,179.99,179.98,27.45086629]
[1755591279177,0.1,179.99,179.98,53.45086629]
[1755591282178,0.1,179.99,179.98,27.45086629]
[1755591283386,1e-08,179.99,179.98,27.45086629]
[1755591283572,1e-08,180.0,179.99,15.10621557]
[1755591283767,1e-08,180.0,179.99,61.17469339]
[1755591285515,1e-08,180.0,179.99,66.7305576]
[1755591286073,1e-08,180.03,180.02,41.10621557]
[1755591286294,1e-08,180.03,180.02,86.43469339]
[1755591286608,1e-08,180.03,180.02,87.15469339]
[1755591287501,1e-08,180.03,180.02,92.70963173]
[1755591290382,0.75,180.09,180.07,15.10621557]
[1755591290598,0.75,180.09,180.08,54.32621557]
[1755591290599,0.1,180.09,180.08,54.32621557]
[1755591291608,0.1,180.09,180.08,61.13469339]
[1755591291812,6.73847782,180.13,180.09,15.10621557]
[1755591292114,0.65,180.12,180.11,15.10621557]
[1755591292290,6.08847782,180.14,180.12,5.55185431]
[1755591292489,6.08847782,180.14,180.13,39.22]
[1755591292705,2.89575441,180.22,180.13,39.22]
[1755591292908,6.08847782,180.16,180.13,39.22]
[1755591293125,0.65,180.15,180.13,39.22]
[1755591293332,0.65,180.14,180.13,39.22]
[1755591293489,0.65,180.14,180.13,54.32621557]
[1755591294399,0.65,180.14,180.13,59.87776167]
[1755591294721,2.89575441,180.22,180.14,15.10621557]
[1755591294925,6.73847782,180.16,180.15,39.22]
[1755591295122,6.73847782,180.16,180.15,39.2]
[1755591295691,6.08847782,180.16,180.15,39.2]
[1755591296020,0.65,180.16,180.15,39.2]
[1755591296196,0.65,180.16,180.15,54.30621557]
[1755591296397,0.65,180.16,180.15,59.85714535]
[1755591296823,6.73847782,180.16,180.15,54.30621557]
[1755591297521,0.65,180.16,180.15,59.85714535]
[1755591298513,6.08847782,180.17,180.15,59.85714535]
[1755591298814,6.73847782,180.16,180.15,59.85714535]
[1755591299186,0.65,180.16,180.15,59.85714535]
[1755591299599,6.08847782,180.17,180.15,59.85714535]
[1755591299802,6.73847782,180.17,180.15,59.85714535]
[1755591300218,6.73847782,180.16,180.14,26.0]
[1755591300417,0.65,180.15,180.14,26.0]
[1755591300598,0.65,180.17,180.15,15.10621557]
[1755591300796,6.73847782,180.17,180.16,39.18]
[1755591301017,0.65,180.17,180.16,39.18]
[1755591301518,6.08847782,180.18,180.16,39.18]
[1755591301922,6.73847782,180.17,180.14,26.0]
[1755591302222,0.65,180.16,180.15,39.18]
[1755591303219,0.65,180.18,180.15,54.28621557]
[1755591303423,6.73847782,180.18,180.15,59.83714535]
[1755591304321,6.73847782,180.17,180.15,20.65714535]
[1755591304517,0.65,180.17,180.16,39.2]
[1755591304895,0.03,180.2,180.16,39.2]
[1755591305104,0.65,180.19,180.16,39.2]
[1755591305318,0.65,180.18,180.16,39.2]
[1755591305527,0.65,180.17,180.16,39.2]
[1755591305824,6.08847782,180.17,180.16,39.2]
[1755591306024,0.03,180.2,180.17,15.10621557]
[1755591306229,0.03,180.2,180.19,15.10621557]
[1755591306434,6.11847782,180.2,180.17,0.72]
[1755591306601,6.08847782,180.18,180.15,15.10621557]
[1755591306797,6.08847782,180.16,180.15,15.10621557]
[1755591307010,6.73847782,180.16,180.15,39.22]
[1755591307204,6.73847782,180.16,180.15,39.24]
[1755591307405,6.08847782,180.16,180.15,54.34621557]
[1755591307611,6.73847782,180.16,180.12,5.5517805]
[1755591307821,6.08847782,180.13,180.09,20.65899473]
[1755591308022,0.66,180.12,180.1,39.26]
[1755591308221,0.66,180.16,180.11,0.71]
[1755591308533,0.66,180.18,180.12,59.93806988]
[1755591308731,0.69,180.2,180.15,26.0]
[1755591309025,6.08847782,180.16,180.13,0.71]
[1755591309207,6.08847782,180.15,180.14,54.38621557]
[1755591309523,6.08847782,180.15,180.14,39.32]
[1755591310192,0.66,180.19,180.14,45.58114621]
[1755591310393,0.03,180.2,180.16,15.10621557]
[1755591310594,0.03,180.2,180.17,39.32]
[1755591310819,0.03,180.2,180.17,40.03]
[1755591311117,0.03,180.2,180.18,0.71]
[1755591311314,0.03,180.2,180.19,39.34]
[1755591311713,0.03,180.2,180.19,44.88969754]
[1755591311995,0.03,180.2,180.19,39.34]
[1755591312199,6.11847782,180.2,180.19,44.88969754]
[1755591312613,6.11847782,180.2,180.19,60.70591311]
[1755591312614,0.03,180.2,180.19,60.70591311]
[1755591312816,0.03,180.2,180.19,66.79439093]
[1755591313337,0.03,180.22,180.2,15.10621557]
[1755591313512,0.03,180.22,180.21,54.42621557]
[1755591313827,0.03,180.22,180.21,66.77377501]
[1755591316600,1e-08,180.22,180.21,66.77377501]
[1755591320619,1e-08,180.24,180.23,41.10621557]
[1755591320846,0.66,180.3,180.28,15.10621557]
[1755591321151,0.66,180.32,180.29,39.28]
[1755591321347,0.66,180.31,180.29,39.28]
[1755591321662,6.74847782,180.3,180.29,39.28]
[1755591322446,0.66,180.3,180.29,39.28]
[1755591322615,6.74847782,180.3,180.29,39.28]
[1755591322940,0.66,180.3,180.29,44.82661933]
[1755591323146,6.08847782,180.31,180.29,5.54661933]
[1755591323450,2.89314781,180.38,180.29,5.54661933]
[1755591323451,5.54262276,180.42,180.3,15.10621557]
[1755591323682,0.66,180.35,180.31,39.26]
[1755591323818,6.74847782,180.34,180.31,39.26]
[1755591324439,6.74847782,180.34,180.32,5.54569653]
[1755591324641,6.74847782,180.36,180.33,39.28]
[1755591325367,2.89259232,180.4,180.33,39.28]
[1755591325538,6.74847782,180.38,180.34,15.10621557]
[1755591325743,6.74847782,180.38,180.35,39.26]
[1755591325951,0.66,180.38,180.35,39.26]
[1755591326487,6.74847782,180.38,180.36,5.54446662]
[1755591326644,6.08847782,180.39,180.37,39.26]
[1755591326843,6.74847782,180.4,180.37,39.26]
[1755591327053,2.89207607,180.44,180.37,39.26]
[1755591327270,0.66,180.45,180.4,15.10621557]
[1755591327475,6.08847782,180.43,180.41,39.28]
[1755591327683,6.74847782,180.42,180.38,15.10621557]
[1755591327843,6.08847782,180.41,180.39,39.28]
[1755591328042,6.74847782,180.41,180.39,39.28]
[1755591328352,6.74847782,180.41,180.38,41.10621557]
[1755591328558,11.629299,180.48,180.38,26.0]
[1755591328559,6.08847782,180.39,180.38,26.0]
[1755591328749,6.74847782,180.39,180.38,39.28]
[1755591330367,6.08847782,180.39,180.38,39.28]
[1755591330775,0.03,180.43,180.38,39.28]
[1755591331075,6.08847782,180.41,180.38,44.82385186]
[1755591331274,0.66,180.42,180.38,45.53385186]
[1755591331569,6.08847782,180.41,180.39,15.10621557]
[1755591331771,6.74847782,180.41,180.38,5.54385186]
[1755591332072,6.74847782,180.41,180.4,39.34]
[1755591333081,6.74847782,180.41,180.35,26.0]
[1755591333366,6.08847782,180.38,180.36,39.36]
[1755591333565,0.69,180.43,180.37,15.81621557]
[1755591333769,6.08847782,180.42,180.38,39.36]
[1755591334078,6.08847782,180.42,180.39,0.71]
[1755591334255,6.08847782,180.42,180.4,44.903171]
[1755591334569,6.08847782,180.41,180.4,39.36]
[1755591334789,0.03,180.43,180.4,39.36]
[1755591335075,6.08847782,180.41,180.4,39.36]
[1755591336152,6.08847782,180.41,180.4,44.90323725]
[1755591336779,0.03,180.43,180.4,44.90323725]
[1755591337075,6.08847782,180.41,180.4,39.36]
[1755591337458,6.74847782,180.41,180.4,39.36]
[1755591337677,6.74847782,180.41,180.37,20.65033361]
[1755591337853,6.08847782,180.38,180.37,20.65033361]
[1755591338171,0.03,180.43,180.37,60.64033361]
[1755591338346,6.08847782,180.39,180.37,60.64033361]
[1755591338960,6.08847782,180.38,180.37,39.32]
[1755591339361,6.08847782,180.38,180.37,39.99]
[1755591339548,6.08847782,180.39,180.37,45.53415922]
[1755591339763,0.69,180.41,180.37,44.86415922]
[1755591339954,6.08847782,180.38,180.37,44.86415922]
[1755591340163,6.77847782,180.38,180.35,26.0]
[1755591340347,6.08847782,180.36,180.33,0.67]
[1755591340562,0.69,180.36,180.34,39.34]
[1755591340874,6.08847782,180.35,180.34,39.34]
[1755591341058,6.77847782,180.35,180.34,39.36]
[1755591341379,6.08847782,180.35,180.34,39.36]
[1755591341552,6.08847782,180.39,180.35,15.10621557]
[1755591341880,6.08847782,180.4,180.37,15.10621557]
[1755591342175,6.08847782,180.41,180.38,40.09]
[1755591342348,6.08847782,180.4,180.38,39.42]
[1755591342549,6.77847782,180.39,180.34,26.0]
[1755591342778,0.69,180.38,180.35,39.42]
[1755591342974,5.57254642,180.43,180.35,39.42]
[1755591342975,0.69,180.37,180.35,39.42]
[1755591343280,4.10226385,180.42,180.31,6.21597875]
[1755591343281,0.69,180.36,180.31,6.21597875]
[1755591343478,0.69,180.36,180.32,39.44]
[1755591343864,6.08847782,180.34,180.32,39.44]
[1755591344064,6.08847782,180.34,180.32,40.11]
[1755591344482,6.08847782,180.33,180.32,40.11]
[1755591344795,6.77847782,180.33,180.32,39.44]
[1755591345294,0.69,180.33,180.32,39.44]
[1755591345492,6.08847782,180.33,180.32,39.44]
[1755591345661,6.77847782,180.33,180.25,15.10621557]
[1755591345967,0.69,180.32,180.26,39.44]
[1755591347054,9.41326594,180.27,180.26,39.44]
[1755591347272,9.41326594,180.27,180.26,40.11]
[1755591347583,0.69,180.32,180.26,40.11]
[1755591347584,9.41326594,180.28,180.26,40.11]
[1755591347880,26.0,180.35,180.27,21.32345027]
[1755591347881,9.41326594,180.3,180.27,21.32345027]
[1755591348179,9.41326594,180.28,180.27,15.77621557]
[1755591348986,0.69,180.32,180.27,15.10621557]
[1755591349206,9.41326594,180.28,180.27,15.10621557]
[1755591349510,9.41326594,180.28,180.23,0.67]
[1755591349573,0.69,180.3,180.22,0.06]
[1755591349574,9.41326594,180.24,180.22,0.06]
[1755591349879,0.69,180.32,180.24,15.10621557]
[1755591350177,9.41326594,180.26,180.24,15.10621557]
[1755591350378,9.41326594,180.25,180.23,40.11]
[1755591350578,0.69,180.29,180.23,39.44]
[1755591350780,26.0,180.34,180.25,15.10621557]
[1755591350781,0.69,180.32,180.25,15.10621557]
[1755591350998,9.41326594,180.3,180.27,15.10621557]
[1755591351157,0.69,180.35,180.27,15.10621557]
[1755591351158,9.41326594,180.32,180.28,5.546927]
[1755591351356,9.41326594,180.32,180.29,40.17]
[1755591351574,9.41326594,180.31,180.29,40.17]
[1755591351777,9.41326594,180.31,180.29,39.5]
[1755591351980,9.41326594,180.3,180.29,39.5]
[1755591352168,10.10326594,180.3,180.24,26.0]
[1755591352368,9.41326594,180.25,180.22,15.83621557]
[1755591352567,9.41326594,180.25,180.23,40.19]
[1755591353173,9.41326594,180.25,180.23,45.06841955]
[1755591353378,9.41326594,180.26,180.24,0.67]
[1755591353590,26.0,180.33,180.25,40.19]
[1755591353591,0.69,180.32,180.25,40.19]
[1755591353760,9.41326594,180.3,180.26,0.67]
[1755591353955,9.41326594,180.3,180.27,0.67]
[1755591354188,9.41326594,180.3,180.28,40.19]
[1755591354362,0.69,180.32,180.28,40.19]
[1755591354565,0.69,180.35,180.29,0.67]
[1755591354883,9.41326594,180.34,180.29,0.67]
[1755591355083,9.41326594,180.34,180.3,0.67]
[1755591355260,9.41326594,180.34,180.31,39.52]
[1755591355461,9.41326594,180.33,180.31,39.52]
[1755591355991,9.41326594,180.34,180.31,40.19]
[1755591357301,9.41326594,180.33,180.31,39.52]
[1755591357464,9.41326594,180.32,180.31,39.52]
[1755591358165,10.10326594,180.32,180.31,39.52]
[1755591358390,10.10326594,180.32,180.27,26.0]
[1755591358570,9.41326594,180.29,180.28,39.5]
[1755591359178,10.10326594,180.29,180.28,39.5]
[1755591359567,9.41326594,180.29,180.28,39.5]
[1755591359768,9.41326594,180.3,180.28,45.7168927]
[1755591360205,9.41326594,180.29,180.28,39.5]
[1755591360411,10.10326594,180.29,180.22,16.73454]
[1755591360568,9.41326594,180.23,180.22,31.84075557]
[1755591360905,9.41326594,180.23,180.22,39.6]
[1755591361397,9.41326594,180.23,180.22,0.06]
[1755591361398,10.10326594,180.23,180.22,0.06]
[1755591361610,15.65173178,180.23,180.2,0.06]
[1755591361772,9.41326594,180.21,180.2,0.06]
[1755591362367,0.69,180.26,180.2,5.60936503]
[1755591362575,9.41326594,180.23,180.21,39.58]
[1755591362778,9.41326594,180.22,180.21,39.58]
[1755591362973,9.41326594,180.23,180.21,40.25]
[1755591363182,9.41326594,180.25,180.22,6.21859511]
[1755591363516,0.69,180.28,180.21,39.58]
[1755591363517,9.41326594,180.23,180.21,39.58]
[1755591363810,9.41326594,180.22,180.21,45.79908162]
[1755591364017,9.41326594,180.23,180.21,45.12908162]
[1755591364178,9.41326594,180.22,180.21,39.58]
[1755591364682,10.10326594,180.22,180.21,39.62]
[1755591365012,9.41326594,180.22,180.21,39.62]
[1755591366223,0.69,180.25,180.21,39.62]
[1755591366507,9.41326594,180.23,180.21,40.29]
[1755591366694,9.41326594,180.23,180.21,45.16908162]
[1755591367017,9.41326594,180.24,180.22,0.67]
[1755591367192,9.41326594,180.23,180.21,45.16908162]
[1755591367499,9.41326594,180.23,180.21,45.22908162]
[1755591367719,0.03,180.28,180.22,0.67]
[1755591367878,9.41326594,180.26,180.22,0.67]
[1755591368203,9.41326594,180.26,180.23,0.72]
[1755591368507,9.41326594,180.26,180.24,39.62]
[1755591368696,9.41326594,180.26,180.24,40.34]
[1755591368902,9.41326594,180.27,180.25,0.72]
[1755591369202,10.08326594,180.26,180.24,39.62]
[1755591369377,9.41326594,180.25,180.24,39.62]
[1755591369779,10.08326594,180.25,180.24,39.62]
[1755591369993,9.41326594,180.25,180.24,39.62]
[1755591370378,0.67,180.25,180.24,39.62]
[1755591370579,10.08326594,180.25,180.24,39.62]
[1755591371005,0.67,180.27,180.24,39.62]
[1755591371198,0.03,180.28,180.24,39.62]
[1755591371199,9.41326594,180.25,180.24,39.62]
[1755591371798,9.41326594,180.26,180.24,45.88810523]
[1755591372394,9.41326594,180.27,180.24,45.88810523]
[1755591372705,9.41326594,180.26,180.24,39.62]
[1755591372892,9.41326594,180.25,180.24,39.62]
[1755591373315,9.41326594,180.25,180.24,45.16815801]
[1755591373490,9.41326594,180.26,180.24,45.16815801]